Cogmind - Beta 17.1 @@@ ROGUE MODE // 2026.09.12 @ 21:09:53 Player: C0-2MO Result: Destroyed by P-80 Master with Gamma Rifle Performance ------------- Evolutions (7) 3500 Regions Visited (17) 3400 Robots Destroyed (87) 435 Value Destroyed (5743) 5743 Prototype IDs (16) 320 Alien Tech Used (0) 0 Bonus (5898) 5898 TOTAL SCORE: 19296 Bonus ------- High Alert Combat Kills 215 Follower Combat Kills 983 Hunted by Unchained 500 Entered Garrisons 1200 Used RIF Installer 3000 Cogmind --------- Core Integrity 0/1300 Matter 130/300 Energy 99/100 System Corruption 11% Temperature Cool (0) Movement Core (50) Location -3/Research Parts ------- > --- POWER (1) -------- (None) > --- PROPULSION (4) --- (None) > --- UTILITY (14) ----- Spectral Analyzer Advanced Salvage Targeting Computer Improved Hacking Suite Relay Coupler [NC] (8) Relay Coupler [Swarmer] (40) Relay Coupler [Cutter] (14) > --- WEAPON (2) ------- (None) > --- INVENTORY (5) ---- Improved System Restoration Module Matter Neutralizer KE Penetrator Advanced Datajack Peak State ------------ > --- POWER ------------ Light Particle Reactor > --- PROPULSION ------- VTOL Module Cooled Field Propulsion Drive Field Propulsion Array > --- UTILITY ---------- Structural Scanner Spectral Analyzer Terrain Scan Processor Seismic Detector Advanced Salvage Targeting Computer ECM Suite Improved Hacking Suite Relay Coupler [NC] Relay Coupler [Swarmer] Relay Coupler [Cutter] Relay Coupler [Grunt] Relay Coupler [Brawler] Relay Coupler [Sentry] Relay Coupler [Behemoth] > --- WEAPON ----------- Advanced Remote Datajack Axe > --- INVENTORY -------- Micro Fission Core VTOL Module Improved System Restoration Module Matter Neutralizer KE Penetrator [Rating: 93] Favorites ----------- Power Micro Fission Core Engine Light Ion Engine Power Core Micro Fission Core Reactor Light Particle Reactor Propulsion VTOL Module Treads Light Treads Leg Aluminum Leg Wheel Armored Wheel Flight Unit VTOL Module Utility Seismic Detector Device Seismic Detector Processor Advanced Salvage Targeting Computer Hackware Relay Coupler [Grunt] Protection Light Regenerative Plating Weapon Maul Energy Gun Gatling Laser Ballistic Gun Improved Assault Rifle Launcher EMP Blaster Special Weapon Improved Remote Datajack Impact Weapon Maul Slashing Weapon Axe Piercing Weapon Heavy Pick Special Melee Weapon Datajack Build | -11 -10 -10 -9 -9 -9 -9 -7 -7 -7 -7 -6 -6 -5 -5 -4 -4 -3 ------- Run | Yrd Mat Min Mat Sto Gar Rec Fac Gar Fac Gar Fac Gar Fac Gar Fac Gar Res Slots Evolved 14 | . . . 2 . . . 4 . . . 2 . 2 . 2 . 2 Power . | . . . . . . . . . . . . . . . . . . Propulsion 2 | . . . 1 . . . 1 . . . . . . . . . . Utility 12 | . . . 1 . . . 3 . . . 2 . 2 . 2 . 2 Weapon . | . . . . . . . . . . . . . . . . . . Parts Attached 130 | 5 10 . 26 1 11 . 6 7 2 4 2 3 2 31 5 2 13 Power 11 | . 3 . 1 . 1 . 1 . . 1 . . 1 1 . . 2 Engine 3 | . 2 . . . 1 . . . . . . . . . . . . Core 6 | . 1 . 1 . . . 1 . . 1 . . 1 1 . . . Reactor 2 | . . . . . . . . . . . . . . . . . 2 Propulsion 43 | 3 3 . 11 . 4 . 1 1 1 1 . . . 12 1 2 3 Treads 6 | 2 . . 3 . . . . . . . . . . 1 . . . Leg 1 | 1 . . . . . . . . . . . . . . . . . Wheel 1 | . . . 1 . . . . . . . . . . . . . . Hover . | . . . . . . . . . . . . . . . . . . Flight 35 | . 3 . 7 . 4 . 1 1 1 1 . . . 11 1 2 3 Utility 52 | . 3 . 4 1 5 . 3 4 1 2 2 3 . 13 4 . 7 Device 14 | . 2 . 2 . . . 2 . . . 2 . . . 3 . 3 Storage . | . . . . . . . . . . . . . . . . . . Processor 5 | . . . . . . . . . . . . . . 3 1 . 1 Hackware 29 | . . . 1 . 5 . . 4 1 2 . 3 . 10 . . 3 Protection 4 | . 1 . 1 1 . . 1 . . . . . . . . . . Artifact . | . . . . . . . . . . . . . . . . . . Weapon 24 | 2 1 . 10 . 1 . 1 2 . . . . 1 5 . . 1 Energy Gun 2 | . . . 1 . . . . . . . . . . 1 . . . Energy Cannon . | . . . . . . . . . . . . . . . . . . Ballistic Gun 11 | 2 . . 6 . . . 1 . . . . . . 2 . . . Ballistic Cannon . | . . . . . . . . . . . . . . . . . . Launcher 2 | . . . 2 . . . . . . . . . . . . . . Special Weapon 3 | . . . . . . . . 1 . . . . 1 . . . 1 Impact Weapon 2 | . 1 . 1 . . . . . . . . . . . . . . Slashing Weapon 1 | . . . . . . . . . . . . . . 1 . . . Piercing Weapon 1 | . . . . . . . . . . . . . . 1 . . . Special Melee Weapon 2 | . . . . . 1 . . 1 . . . . . . . . . Unidentified Prototypes 8 | . . . 3 1 . . . . 1 . 1 . . . . . 2 Parts Lost 47 | . . . 8 . 2 . . 1 1 2 1 1 . 7 1 4 19 Power 4 | . . . 1 . 1 . . . . . . . . . . . 2 Propulsion 19 | . . . 2 . 1 . . 1 1 . . . . 5 1 1 7 Utility 18 | . . . 3 . . . . . . 1 1 . . 2 . 3 8 Weapon 6 | . . . 2 . . . . . . 1 . 1 . . . . 2 Highest Loss Streak 17 | . . . 5 . 1 . . 1 1 1 1 1 . 4 1 2 17 To Critical Strikes . | . . . . . . . . . . . . . . . . . . Average Backups 4 | . 4 5 4 4 4 5 4 5 5 5 3 4 5 4 4 5 4 Power . | . 1 1 . . . . . 1 1 1 1 1 1 . . . . Propulsion . | . . 1 1 2 2 1 . . . . . . . . . . . Utility 1 | . . . . . . 2 1 2 3 3 2 2 3 2 2 2 1 Weapon 1 | . 1 2 1 1 1 2 . . . . . 1 1 1 2 2 2 Tool/Special . | . . . . . . . . . . . . . . . . . . Unused Backups 13 | . 1 . 3 1 2 . . . . 1 . 2 . . . . 3 Power 1 | . . . . . . . . . . 1 . . . . . . . Propulsion 4 | . . . 2 . 2 . . . . . . . . . . . . Utility 3 | . . . . . . . . . . . . 2 . . . . 1 Weapon 4 | . 1 . 1 1 . . . . . . . . . . . . 1 Tool/Special 1 | . . . . . . . . . . . . . . . . . 1 Average Slot Usage (%) 85 | . 83 100 73 97 83 100 97 98 94 88 86 86 81 79 92 87 83 Engine 1 | . 4 14 . . 1 11 2 . . . . . . . . . . Core 5 | . 4 . 7 11 5 . 4 7 7 7 6 6 5 4 5 5 2 Treads 2 | . 13 . 5 . . . . . . . . . . . . . . Flight 21 | . 14 28 21 33 31 33 29 30 25 23 20 20 17 18 20 16 16 Device 8 | . 12 14 6 19 4 . 16 8 7 4 14 13 11 5 8 11 8 Processor 2 | . . . . . . . . . . . . . . 5 10 10 10 Hackware 19 | . . . 2 11 12 22 15 19 35 36 26 32 29 30 36 31 34 Protection 5 | . 4 14 6 2 9 11 11 14 1 2 6 6 5 . . . . Ballistic Gun 7 | . 27 14 11 8 3 . 8 1 . . . . . 4 . 1 . Special Weapon 1 | . . . . . . . . 4 7 5 . . 4 2 3 3 3 Impact Weapon 4 | . . 14 7 11 7 11 5 7 7 7 6 6 5 . . . . Slashing Weapon 1 | . . . . . . . . . . . . . . 2 5 5 3 Special Melee Weapon 1 | . . . . . 7 11 . 1 . . 4 1 . . . . . Peak Build Rating 93 | 4 10 8 23 27 29 26 39 44 44 55 62 62 64 67 68 58 93 Average Rating 35 | 3 7 8 12 22 23 26 37 42 41 46 59 58 63 47 58 51 68 On Entrance 35 | . 4 8 8 23 24 26 26 39 42 41 48 58 58 64 60 58 51 Avg Prop Armor Cover (%) 23 | 25 24 . 19 . 4 . . . . . . . . 31 . . . Naked Turns 11 | . . . . . 11 . . . . . . . . . . . . Heaviest Build 26 | 3 9 8 14 14 16 11 20 20 17 15 20 18 21 21 15 15 26 Greatest Support 69 | 3 14 8 69 15 15 15 20 20 19 23 23 25 23 23 20 20 32 Greatest Overweight (x) 6 | . . . 2 . 1 . . 1 . . . . . 6 . . . Average Overweight (x) . | . . . . . . . . . . . . . . . . . . Largest Inventory Capacity 5 | 5 5 5 5 5 5 5 5 5 5 5 5 5 5 5 5 5 5 Average Capacity 5 | 5 5 5 5 5 5 5 5 5 5 5 5 5 5 5 5 5 5 Most Carried 5 | 3 5 5 5 5 5 5 5 5 5 5 5 5 5 5 5 5 5 Average Carried 4 | . 4 5 4 4 4 5 4 5 5 5 3 4 5 4 4 5 4 Final Capacity 5 | 5 5 5 5 5 5 5 5 5 5 5 5 5 5 5 5 5 5 Final Carried 5 | 3 5 5 5 5 5 5 5 5 5 5 4 5 5 5 5 5 4 Class Distribution -------------------- 23% | Botlord-Sprinter 21% | Mutant 17% | Scavenger-Sprinter 14% | Bothacker-Sprinter 13% | Scavenger-Mutant 5% | Sprinter Dominant Class ---------------- Scavenger-Mutant | -10/Materials Scavenger-Mutant | -10/Mines Mutant | -9/Materials Mutant | -9/Storage Sprinter | -9/Garrison Scavenger-Sprinter | -9/Recycling Scavenger-Sprinter | -7/Factory Scavenger-Sprinter | -7/Garrison Bothacker-Sprinter | -7/Factory Bothacker-Sprinter | -7/Garrison Bothacker-Sprinter | -6/Factory Sprinter | -6/Garrison Botlord-Sprinter | -5/Factory Botlord-Sprinter | -5/Garrison Botlord-Sprinter | -4/Factory Botlord-Sprinter | -4/Garrison Botlord-Sprinter | -3/Research Resources | -11 -10 -10 -9 -9 -9 -9 -7 -7 -7 -7 -6 -6 -5 -5 -4 -4 -3 ----------- Run | Yrd Mat Min Mat Sto Gar Rec Fac Gar Fac Gar Fac Gar Fac Gar Fac Gar Res Matter Collected 3100 | 270 274 . 725 20 193 34 65 63 55 80 35 . . 915 188 48 135 Remotely . | . . . . . . . . . . . . . . . . . . Salvage Created 3201 | 123 375 . 1234 61 16 . 65 84 44 . 81 . . 539 185 231 163 Parts 169 | 5 20 . 65 2 . . 4 3 1 . 3 . . 29 14 12 11 Haulers Intercepted 9 | . 2 . 4 1 . . . . 1 . . . . . 1 . . Recyclers Shooed 3 | . 2 . 1 . . . . . . . . . . . . . . Parts Field Recycled . | . . . . . . . . . . . . . . . . . . Retrieved Matter . | . . . . . . . . . . . . . . . . . . Parts Self-Destructed . | . . . . . . . . . . . . . . . . . . Prevented . | . . . . . . . . . . . . . . . . . . Parts Restored . | . . . . . . . . . . . . . . . . . . Kills | -11 -10 -10 -9 -9 -9 -9 -7 -7 -7 -7 -6 -6 -5 -5 -4 -4 -3 ------- Run | Yrd Mat Min Mat Sto Gar Rec Fac Gar Fac Gar Fac Gar Fac Gar Fac Gar Res Combat Hostiles Destroyed 52 | . 7 . 20 . 3 . . 3 . . 1 . . 11 1 5 1 Melee 18 | . . . 5 . 2 . . 2 . . . . . 4 1 3 1 Guns 24 | . 7 . 7 . 1 . . . . . . . . 7 . 2 . AOE 3 | . . . 3 . . . . . . . . . . . . . . Classes Destroyed 13 | 2 6 . 3 . . . . . . . . . . 1 . . 1 Worker 2 | . 1 . 1 . . . . . . . . . . . . . . Builder 5 | . . . 1 . . . 1 . . . . . . . 3 . . Tunneler 3 | 1 . . 2 . . . . . . . . . . . . . . Hauler 9 | . 2 . 4 1 . . . . 1 . . . . . 1 . . Recycler 5 | 1 1 . 1 . . . 1 . . . . . . . . . 1 Mechanic 1 | . . . 1 . . . . . . . . . . . . . . Operator 3 | . 1 . 1 . . . . . . . . . . . . . 1 Watcher 7 | . 1 . 3 1 . . . . . . 2 . . . . . . Swarmer 22 | . 6 . 3 . 2 . . 2 . . . . . 5 1 3 . Cutter 1 | . . . . . . . . . . . . . . . . . 1 Grunt 17 | . 1 . 12 . . . . 1 . . . . . 3 . . . Sentry 11 | . . . 5 . 1 . . . . . 1 . . 2 . 2 . Hunter 1 | . . . . . . . . . . . . . . 1 . . . Best Kill Streak 6 | 2 3 . 6 2 2 . 1 2 1 . 1 . . 3 3 2 1 Combat Bots Only 3 | . 3 . 3 . 2 . . 2 . . 1 . . 3 1 2 1 Max Kills in Single Turn 2 | 1 1 . 2 1 1 . 1 1 1 . 1 . . 2 1 1 1 Gunslinging . | . . . . . . . . . . . . . . . . . . Exploded 1 | . . . 1 . . . . . . . . . . . . . . Melee 1 | . . . 1 . 1 . . 1 . . . . . 1 1 1 1 Uniques/NPCs Destroyed . | . . . . . . . . . . . . . . . . . . Combat | -11 -10 -10 -9 -9 -9 -9 -7 -7 -7 -7 -6 -6 -5 -5 -4 -4 -3 -------- Run | Yrd Mat Min Mat Sto Gar Rec Fac Gar Fac Gar Fac Gar Fac Gar Fac Gar Res Hostile Shots Fired 651 | . 31 8 125 19 34 . 18 15 9 52 75 7 . 54 13 19 172 Missed 298 | . 11 4 50 12 14 . 8 4 7 28 45 2 . 19 5 10 79 Hits 353 | . 20 4 75 7 20 . 10 11 2 24 30 5 . 35 8 9 93 Melee 20 | . . . . . 4 . . . . . . . . 13 . . 3 Projectile 333 | . 20 4 75 7 16 . 10 11 2 24 30 5 . 22 8 9 90 AOE 4 | . . . . . . . . . . . . . . . . . 4 Critical Strikes 13 | . . . 4 1 1 . . . . . . . . 2 . . 5 Actively Blocked 2 | . . . 2 . . . . . . . . . . . . . . Damage Taken 5806 | . 188 60 942 94 172 . 78 167 23 365 272 71 . 833 149 169 2223 Core 2336 | . 36 31 283 13 26 . 35 44 . 67 33 15 . 336 70 30 1317 Absorbed by Shields 52 | . . . . . . . . . . 9 . 25 . 18 . . . Redirected to Shielding 61 | . 3 . 50 . . . . 8 . . . . . . . . . Regen/Repaired (Parts) 515 | . 17 . 6 3 75 95 25 . . 24 76 73 45 12 64 . . Core Remaining (%) 74 | 100 . 73 . . . 19 . . . 79 . 94 . 66 . 91 . Volleys Fired 244 | 5 37 . 70 . 7 . 2 3 4 4 . . . 64 19 7 22 Largest 2 | 2 2 . 2 . 2 . 2 1 1 1 . . . 2 1 2 1 Hottest 66 | 40 40 . 50 . 46 . 46 5 5 5 . . . 66 7 66 10 Shots Fired 352 | 10 74 . 113 . 9 . 4 3 4 4 . . . 82 19 8 22 Gun 255 | 10 74 . 105 . 9 . 4 . . . . . . 48 . 5 . Cannon . | . . . . . . . . . . . . . . . . . . Launcher 8 | . . . 8 . . . . . . . . . . . . . . Special 89 | . . . . . . . . 3 4 4 . . . 34 19 3 22 Kinetic 255 | 10 74 . 105 . 9 . 4 . . . . . . 48 . 5 . Thermal . | . . . . . . . . . . . . . . . . . . Explosive 1 | . . . 1 . . . . . . . . . . . . . . Electromagnetic 7 | . . . 7 . . . . . . . . . . . . . . Robot Hit Streak 27 | 2 5 . 9 . 6 . 9 10 5 7 . . . 17 27 4 5 Robot Miss Streak 5 | 2 2 . 4 . . . . 1 . 1 . . . 5 2 1 2 Penetration Max 1 | . . . . . . . . . . . . . . 1 . . . Secondary Targets . | . . . . . . . . . . . . . . . . . . Shots Hit Robots 329 | 4 46 . 97 3 13 24 5 9 6 3 20 . . 43 26 13 17 Core Hits 98 | 3 21 . 39 . 2 . 1 2 . . 2 . . 17 5 4 2 Critical Kills 4 | . 1 . 2 . . . . 1 . . . . . . . . . Critical Parts Destroyed 16 | . . . 8 1 1 . 1 . . . 3 . . 2 . . . Critical Strikes 22 | . 1 . 11 1 1 . 1 1 . . 3 . . 3 . . . Destroy 6 | . 1 . 3 . . . . . . . . . . 2 . . . Smash 15 | . . . 8 1 1 . 1 1 . . 3 . . . . . . Sever 1 | . . . . . . . . . . . . . . 1 . . . Melee Attacks 269 | . 3 . 40 9 15 27 9 27 7 15 21 15 7 19 15 16 24 Impact 154 | . 3 . 40 9 6 3 9 23 7 15 16 15 7 1 . . . Slashing 73 | . . . . . . . . . . . . . . 18 15 16 24 Piercing . | . . . . . . . . . . . . . . . . . . Sneak Attacks 61 | . . . 3 1 2 24 1 2 1 . 8 . . 5 5 7 2 Combat Hostiles 4 | . . . 1 . . . . 2 . . . . . 1 . . . Follow-up Attacks 1 | . . . 1 . . . . . . . . . . . . . . Damage Inflicted 6598 | 51 491 . 2373 153 295 . 160 247 80 . 604 . . 785 609 533 217 Guns 2105 | 51 491 . 986 . 65 . 52 . . . . . . 393 . 67 . Cannons . | . . . . . . . . . . . . . . . . . . Explosions 570 | . . . 526 . 44 . . . . . . . . . . . . Melee 3923 | . . . 861 153 186 . 108 247 80 . 604 . . 392 609 466 217 Ramming . | . . . . . . . . . . . . . . . . . . Kinetic 2105 | 51 491 . 986 . 65 . 52 . . . . . . 393 . 67 . Thermal 106 | . . . 106 . . . . . . . . . . . . . . Explosive 137 | . . . 93 . 44 . . . . . . . . . . . . Electromagnetic 327 | . . . 327 . . . . . . . . . . . . . . Impact 2239 | . . . 861 153 186 . 108 247 80 . 604 . . . . . . Slashing 1684 | . . . . . . . . . . . . . . 392 609 466 217 Piercing . | . . . . . . . . . . . . . . . . . . Highest Corruption 11 | . 1 1 . . . . . . . . 1 1 . . . . 11 Average Corruption 1 | . 1 1 . . . . . . . . 1 1 . . . . 6 Corruption Purged . | . . . . . . . . . . . . . . . . . . Corruption Blocked . | . . . . . . . . . . . . . . . . . . Effects 10 | . 8 . . . . . . . . . . . . . . . 2 Message Errors 3 | . 3 . . . . . . . . . . . . . . . . Matter Fused 3 | . 3 . . . . . . . . . . . . . . . . Heat Flow Errors 1 | . . . . . . . . . . . . . . . . . 1 Data Loss (minor) 3 | . 2 . . . . . . . . . . . . . . . 1 Overload Shots . | . . . . . . . . . . . . . . . . . . Overflow Damage 998 | . . . 322 68 166 . 78 30 34 . 137 . . . 69 68 26 Projectiles . | . . . . . . . . . . . . . . . . . . Explosions 13 | . . . 13 . . . . . . . . . . . . . . Melee 985 | . . . 309 68 166 . 78 30 34 . 137 . . . 69 68 26 Knockbacks 7 | . . . 3 1 . . 1 1 . . 1 . . . . . . Impact 7 | . . . 3 1 . . 1 1 . . 1 . . . . . . Kinetic . | . . . . . . . . . . . . . . . . . . Secondary . | . . . . . . . . . . . . . . . . . . Self-Inflicted Damage . | . . . . . . . . . . . . . . . . . . Shots . | . . . . . . . . . . . . . . . . . . Rammed . | . . . . . . . . . . . . . . . . . . Targets Rammed . | . . . . . . . . . . . . . . . . . . Kicked . | . . . . . . . . . . . . . . . . . . Crushed . | . . . . . . . . . . . . . . . . . . Highest Temperature 166 | . 16 4 73 31 21 . 5 . . 3 . . . 3 . . 166 Average Temperature 14 | . 5 4 16 13 10 . 3 . . 3 . . . 3 . . 89 Received Heat Transfer 1005 | . 42 18 441 51 51 . 24 . 9 93 60 30 . 54 21 18 93 Siege Activations . | . . . . . . . . . . . . . . . . . . Martial Activations . | . . . . . . . . . . . . . . . . . . Shielding Activations . | . . . . . . . . . . . . . . . . . . Robots Disrupted . | . . . . . . . . . . . . . . . . . . Combat Hostiles . | . . . . . . . . . . . . . . . . . . Robots Corrupted 12 | . . . 5 2 . . 1 1 1 . 2 . . . . . . Combat Hostiles 7 | . . . 5 . . . . 1 . . 1 . . . . . . Parts Fried 15 | . . . 7 3 2 . 1 . 1 . 1 . . . . . . Impact Corruptions 29 | . . . 12 4 2 . 3 2 1 . 5 . . . . . . Robots Melted . | . . . . . . . . . . . . . . . . . . Combat Hostiles . | . . . . . . . . . . . . . . . . . . Parts Melted . | . . . . . . . . . . . . . . . . . . Heat Transferred 150 | . . . 150 . . . . . . . . . . . . . . Parts Sabotaged 9 | . . . . . 9 . . . . . . . . . . . . Parts Stolen . | . . . . . . . . . . . . . . . . . . Parts Stripped . | . . . . . . . . . . . . . . . . . . Power Chain Reactions 2 | . . . 2 . . . . . . . . . . . . . . Alert | -11 -10 -10 -9 -9 -9 -9 -7 -7 -7 -7 -6 -6 -5 -5 -4 -4 -3 ------- Run | Yrd Mat Min Mat Sto Gar Rec Fac Gar Fac Gar Fac Gar Fac Gar Fac Gar Res Maximum Alert Level 3 | . . . 2 1 2 1 2 2 1 2 1 1 . 3 2 2 1 Low Security (%) 32 | 100 100 100 18 . . 39 . . . . . 15 100 28 . . 69 Level 1 31 | . . . 19 100 43 60 15 58 100 82 100 84 . 13 1 23 30 Level 2 34 | . . . 62 . 56 . 84 41 . 17 . . . 45 98 76 . Level 3 1 | . . . . . . . . . . . . . . 13 . . . Level 4 . | . . . . . . . . . . . . . . . . . . Level 5 . | . . . . . . . . . . . . . . . . . . High Security . | . . . . . . . . . . . . . . . . . . Max Security . | . . . . . . . . . . . . . . . . . . Peak Influence 816 | 10 195 43 666 364 601 270 531 533 336 466 247 345 180 816 511 552 316 Initial 531 | . . 43 12 273 230 270 531 259 279 207 244 165 180 110 420 350 310 Average 309 | 3 83 37 424 316 418 198 452 394 298 327 224 247 158 414 437 456 135 Influence Increases 5748 | 10 352 . 1089 121 451 65 585 304 107 359 142 190 38 1012 321 242 360 Destroy 0b10 Robot/C 1535 | . 140 . 400 . 100 40 . 80 40 60 30 . . 405 135 75 30 Destroy 0b10 Robot/NC 175 | 10 30 . 70 10 . . 10 . 5 . 12 . . . 20 . 8 Destroy Leader 258 | . 36 . 134 4 10 . . . 12 . 20 . . 24 18 . . Allied During Kill 143 | . . . . . 3 2 . 1 3 3 . . . 83 46 . 2 Successful Hack 279 | . 24 . 28 28 16 19 24 . 12 14 7 . . 6 2 11 88 Disable Machine 57 | . . . 15 15 . . . . . 15 . . . 12 . . . Anti-Garrison Action 1006 | . . . . . 200 . . 200 . 150 . 152 . 228 . 76 . Destroy Structure 400 | . 2 . 22 4 62 4 6 23 5 45 1 26 14 110 4 32 40 Advance Influence 500 | . . . . . . . 500 . . . . . . . . . . Partial Spotted 393 | . . . 90 60 30 . 15 . 30 . 12 . 12 24 . 36 84 Lose Combat Pursuer 1002 | . 120 . 330 . 30 . 30 . . 72 60 12 12 120 96 12 108 Influence Decreases 5748 | 10 239 80 475 414 204 591 290 141 344 189 372 81 225 368 622 191 912 Entered New Map 2699 | . . 70 21 374 124 331 44 111 254 89 222 71 165 48 382 151 242 Time Decay 1647 | 10 239 10 374 40 . 140 246 . 80 . 110 . 60 . 130 . 208 Search Patrol Dispatched 100 | . . . . . . . . . . . . . . . . . 100 Lost Part 435 | . . . 80 . 20 . . 10 10 20 10 10 . 70 10 40 155 Lost Ally 717 | . . . . . 60 120 . 20 . 80 30 . . 250 100 . 57 Purge Threat 150 | . . . . . . . . . . . . . . . . . 150 Squads Dispatched 30 | . 6 . 6 1 . . 4 . 1 . 4 . . . 3 . 5 Investigation 16 | . 5 . 6 . . . 1 . . . 3 . . . 1 . . Extermination 5 | . . . . . . . 2 . . . 1 . . . . . 2 Reinforcement 8 | . 1 . . . . . 1 . 1 . . . . . 2 . 3 Assault . | . . . . . . . . . . . . . . . . . . Garrison 1 | . . . . 1 . . . . . . . . . . . . . Intercept . | . . . . . . . . . . . . . . . . . . Searches Triggered 1 | . . . . . . . . . . . . . . . . . 1 Construction Impeded 1 | . . . . . . . 1 . . . . . . . . . . Haulers Reinforced 1 | . . . . . . . . . 1 . . . . . . . . Active Scanning Responses . | . . . . . . . . . . . . . . . . . . Cargo Convoy Interrupts . | . . . . . . . . . . . . . . . . . . Stealth | -11 -10 -10 -9 -9 -9 -9 -7 -7 -7 -7 -6 -6 -5 -5 -4 -4 -3 --------- Run | Yrd Mat Min Mat Sto Gar Rec Fac Gar Fac Gar Fac Gar Fac Gar Fac Gar Res Distress Signals 14 | . 2 . 5 1 . . 1 . . . . . . . 5 . . Communications Jammed 31 | . . . . . . . . . . . 2 . . . 24 . 5 Distress Signals 31 | . . . . . . . . . . . 2 . . . 24 . 5 Times Spotted 258 | . 18 7 51 13 17 . 6 8 4 16 13 1 1 35 16 7 45 Peak Tracking Total 17 | . 5 7 12 9 6 . 4 4 2 7 6 2 1 5 10 3 17 Tactical Retreats 41 | . 3 . 9 2 2 . 2 . . 2 2 1 1 6 3 1 7 ECM-based Alert Blocks 5 | . . . 2 2 . . . . . . . . . . . . 1 Traps | -11 -10 -10 -9 -9 -9 -9 -7 -7 -7 -7 -6 -6 -5 -5 -4 -4 -3 ------- Run | Yrd Mat Min Mat Sto Gar Rec Fac Gar Fac Gar Fac Gar Fac Gar Fac Gar Res Traps Triggered 20 | . 3 . 1 . 2 . . 3 . 3 1 3 . 4 . . . Indirectly . | . . . . . . . . . . . . . . . . . . Trap Hack Attempts . | . . . . . . . . . . . . . . . . . . Triggered . | . . . . . . . . . . . . . . . . . . Disarmed . | . . . . . . . . . . . . . . . . . . Reprogrammed . | . . . . . . . . . . . . . . . . . . Reused . | . . . . . . . . . . . . . . . . . . Traps Extracted . | . . . . . . . . . . . . . . . . . . Installed . | . . . . . . . . . . . . . . . . . . Triggered . | . . . . . . . . . . . . . . . . . . Machines | -11 -10 -10 -9 -9 -9 -9 -7 -7 -7 -7 -6 -6 -5 -5 -4 -4 -3 ---------- Run | Yrd Mat Min Mat Sto Gar Rec Fac Gar Fac Gar Fac Gar Fac Gar Fac Gar Res Machines Disabled 25 | . . . 1 1 4 . . 4 . 3 . 3 . 8 . 1 . Max in Single Turn 2 | . . . 1 1 2 . . 1 . 1 . 1 . 2 . 1 . Garrison Relay 16 | . . . . . 2 . . 4 . 2 . 3 . 4 . 1 . Phase Generator 2 | . . . . . 1 . . . . . . . . 1 . . . Machines Repaired . | . . . . . . . . . . . . . . . . . . Machines Dismantled . | . . . . . . . . . . . . . . . . . . Machines Sabotaged . | . . . . . . . . . . . . . . . . . . Overloaded Fab Kills . | . . . . . . . . . . . . . . . . . . Hacking | -11 -10 -10 -9 -9 -9 -9 -7 -7 -7 -7 -6 -6 -5 -5 -4 -4 -3 --------- Run | Yrd Mat Min Mat Sto Gar Rec Fac Gar Fac Gar Fac Gar Fac Gar Fac Gar Res Machines Accessed 78 | . 10 . 13 5 2 10 8 1 6 1 4 1 2 3 2 1 9 Terminals 52 | . 7 . 11 4 2 4 6 1 2 1 1 1 1 3 . 1 7 Fabricators 1 | . . . . . . . . . 1 . . . . . . . . Repair Stations 5 | . 1 . 1 . . . . . 1 . . . . . 1 . 1 Recycling Units 10 | . 2 . . . . 6 1 . . . 1 . . . . . . Scanalyzers 4 | . . . 1 . . . . . 1 . 1 . . . . . 1 Garrison Access 6 | . . . . 1 . . 1 . 1 . 1 . 1 . 1 . . Total Hacks 273 | . 45 . 47 14 3 58 35 2 17 3 12 2 4 5 5 3 18 Successful 172 | . 31 . 28 7 1 47 22 . 9 1 9 . 1 1 3 1 11 Failed 99 | . 14 . 18 7 2 11 13 2 8 2 3 2 3 4 2 2 6 Catastrophic 16 | . . . 3 . 1 1 1 1 2 . 1 1 1 2 1 . 1 Database Lockouts 2 | . . . 1 . . . . . . . . . . . . . 1 Manual 157 | . 37 . 42 8 . 19 22 . 9 . 5 . 3 . 1 . 11 Terminals 182 | . 36 . 43 13 3 20 22 2 9 3 4 2 2 5 . 3 15 Fabricators 2 | . . . . . . . . . 2 . . . . . . . . Repair Stations 9 | . 3 . 1 . . . . . 1 . . . . . 3 . 1 Recycling Units 56 | . 6 . . . . 38 10 . . . 2 . . . . . . Scanalyzers 11 | . . . 3 . . . . . 3 . 3 . . . . . 2 Garrison Access 13 | . . . . 1 . . 3 . 2 . 3 . 2 . 2 . . Terminal Hacks 56 | . 15 . 16 3 1 11 3 . 1 1 1 . . 1 . 1 2 Robot Analysis 3 | . 2 . . . . . . . . . . . . . . . 1 Prototype ID Bank 2 | . . . 1 1 . . . . . . . . . . . . . Open Door 2 | . . . . 1 . . . . . . . . . 1 . . . Branch Access Points 1 | . . . 1 . . . . . . . . . . . . . . Emergency Access Points 1 | . . . . . . . . . . 1 . . . . . . . Terminal Index 1 | . . . . . . . 1 . . . . . . . . . . Locate Traps 2 | . . . . . . . 1 . . . 1 . . . . . . Maintenance Status 39 | . 13 . 14 . . 11 1 . . . . . . . . . . Zone Layout 3 | . . . . 1 . . . . 1 . . . . . . . 1 Garrison Registry 1 | . . . . . . . . . . . . . . . . 1 . Security Stations 1 | . . . . . 1 . . . . . . . . . . . . Fabricator Hacks 2 | . . . . . . . . . 2 . . . . . . . . Network Status 2 | . . . . . . . . . 2 . . . . . . . . Repair Station Hacks 4 | . 2 . . . . . . . . . . . . . 2 . . Scan Component 2 | . 1 . . . . . . . . . . . . . 1 . . Repair 2 | . 1 . . . . . . . . . . . . . 1 . . Recycling Unit Hacks 54 | . 6 . . . . 36 10 . . . 2 . . . . . . Process 1 | . . . . . . . 1 . . . . . . . . . . Report Inventory 50 | . 6 . . . . 36 6 . . . 2 . . . . . . Retrieve Matter 3 | . . . . . . . 3 . . . . . . . . . . Scanalyzer 8 | . . . 2 . . . . . 2 . 3 . . . . . 1 Insert Component 1 | . . . . . . . . . . . 1 . . . . . . Analyze 1 | . . . . . . . . . . . 1 . . . . . . Retrieve Study 6 | . . . 2 . . . . . 2 . 1 . . . . . 1 Garrison Access Hacks 7 | . . . . 1 . . 2 . 1 . 1 . 1 . 1 . . Unlock Access 6 | . . . . 1 . . 1 . 1 . 1 . 1 . 1 . . Coupler Status 1 | . . . . . . . 1 . . . . . . . . . . Unauthorized Hacks 41 | . 8 . 10 3 . . 7 . 3 . 2 . . . . . 8 Terminals 38 | . 8 . 9 3 . . 7 . 2 . 2 . . . . . 7 Assimilate 1 | . . . 1 . . . . . . . . . . . . . . Botnet 14 | . 2 . 2 1 . . 2 . 1 . 1 . . . . . 5 Operators 2 | . 1 . 1 . . . . . . . . . . . . . . Skim 21 | . 5 . 5 2 . . 5 . 1 . 1 . . . . . 2 Fabricators . | . . . . . . . . . . . . . . . . . . Repair Stations 3 | . . . 1 . . . . . 1 . . . . . . . 1 Mechanics 2 | . . . . . . . . . 1 . . . . . . . 1 Patch 1 | . . . 1 . . . . . . . . . . . . . . Recycling Units . | . . . . . . . . . . . . . . . . . . Scanalyzers . | . . . . . . . . . . . . . . . . . . Garrison Access . | . . . . . . . . . . . . . . . . . . Data Cores Recovered 1 | . . . . . . . . . . . . . . . . . 1 Used . | . . . . . . . . . . . . . . . . . . Hacking Detections 72 | . 10 . 11 5 1 10 8 1 4 1 4 1 2 3 2 1 8 Full Trace Events 35 | . 10 . 5 . 1 10 1 . . 1 3 1 . 1 1 1 . Feedback Events . | . . . . . . . . . . . . . . . . . . Feedback Blocked . | . . . . . . . . . . . . . . . . . . Robot Schematics Acquired . | . . . . . . . . . . . . . . . . . . Robots Built . | . . . . . . . . . . . . . . . . . . Authchips . | . . . . . . . . . . . . . . . . . . Time . | . . . . . . . . . . . . . . . . . . Total Robot Build Rating . | . . . . . . . . . . . . . . . . . . Part Schematics Acquired 1 | . . . . . . . . . . . 1 . . . . . . Parts Built . | . . . . . . . . . . . . . . . . . . Authchips . | . . . . . . . . . . . . . . . . . . Time . | . . . . . . . . . . . . . . . . . . Total Part Build Rating . | . . . . . . . . . . . . . . . . . . Part Studies Acquired 6 | . . . 2 . . . . . 2 . 1 . . . . . 1 Parts Repaired 2 | . 1 . . . . . . . . . . . . . 1 . . Time 94 | . 38 . . . . . . . . . . . . . 56 . . Parts Recycled . | . . . . . . . . . . . . . . . . . . Recycled Matter 39 | . . . . . . . 39 . . . . . . . . . . Retrieved Matter 39 | . . . . . . . 39 . . . . . . . . . . Retrieved Components . | . . . . . . . . . . . . . . . . . . Parts Scanalyzed 1 | . . . . . . . . . . . 1 . . . . . . Part Schematics Acquired 1 | . . . . . . . . . . . 1 . . . . . . Parts Damaged 1 | . . . . . . . . . . . 1 . . . . . . Bothacking | -11 -10 -10 -9 -9 -9 -9 -7 -7 -7 -7 -6 -6 -5 -5 -4 -4 -3 ------------ Run | Yrd Mat Min Mat Sto Gar Rec Fac Gar Fac Gar Fac Gar Fac Gar Fac Gar Res Used RIF Installer 6 | . . . . . 1 . . 1 . 1 . 1 . 1 . 1 . Hotswap 1 | . . . . . . . . . . . . 1 . . . . . Code Merge 1 | . . . . . . . . . . . . . . 1 . . . Threat Obfuscator 1 | . . . . . . . . . . 1 . . . . . . . Signal Jammer 1 | . . . . . . . . 1 . . . . . . . . . Watcher Feeds 1 | . . . . . . . . . . . . . . . . 1 . Robots Hacked 51 | . . . . . 7 . . 5 3 2 3 . . 13 6 3 9 Non-combat 13 | . . . . . . . . . . . 2 . . 1 4 . 6 Combat 38 | . . . . . 7 . . 5 3 2 1 . . 12 2 3 3 Robot Hacks Applied 59 | . . . . . 7 . . 5 3 3 4 . . 13 7 3 14 parse_system 1 | . . . . . . . . . . 1 . . . . . . . find_chute 3 | . . . . . . . . . . . . . . . 3 . . ignore_repairs 1 | . . . . . . . . . . . 1 . . . . . . drop_inventory 2 | . . . . . . . . . . . . . . . . . 2 purge_threat 1 | . . . . . . . . . . . . . . . . . 1 block_reporting 6 | . . . . . . . . . . . 1 . . . . . 5 scatter_targeting 1 | . . . . . 1 . . . . . . . . . . . . broadcast_data 1 | . . . . . . . . . . 1 . . . . . . . amplify_resonance 5 | . . . . . . . . 2 . . . . . 1 2 . . reboot_system 9 | . . . . . 1 . . . . . 1 . . 2 1 3 1 overwrite_iff 10 | . . . . . 5 . . 3 . . . . . . . . 2 formatsys_low 6 | . . . . . . . . . . . 1 . . 1 1 . 3 formatsys_high 13 | . . . . . . . . . 3 1 . . . 9 . . . Relay Couplers Released 63 | . . . . . 10 . . 15 . 8 . 13 . 14 . 3 . Machine Destruction 63 | . . . . . 10 . . 15 . 8 . 13 . 14 . 3 . Attached 27 | . . . . . 5 . . 4 1 2 . 3 . 10 . . 2 Merged Code Value 41 | . . . . . . . . . . . . . . 20 . 21 . Fabnet Peak Effective % . | . . . . . . . . . . . . . . . . . . Robots Rewired 17 | . . . . . . 7 . . . . 1 . . 8 1 . . Allies Hacked . | . . . . . . . . . . . . . . . . . . Hacks Repelled . | . . . . . . . . . . . . . . . . . . Allies | -11 -10 -10 -9 -9 -9 -9 -7 -7 -7 -7 -6 -6 -5 -5 -4 -4 -3 -------- Run | Yrd Mat Min Mat Sto Gar Rec Fac Gar Fac Gar Fac Gar Fac Gar Fac Gar Res Total Allies 47 | . . . . . 5 7 . 3 3 1 2 . . 19 2 . 5 Largest Group 8 | . . . . . 1 7 . 2 3 3 1 . . 8 8 . 3 Highest-Rated Group 371 | . . . . . 5 125 . 24 122 122 32 . . 354 371 . 116 Highest-Rated Ally 90 | . . . . . 5 27 . 16 90 90 32 . . 68 68 . 45 Total Orders 5 | . . . . . . . . . . . . . . 4 1 . . STAY 1 | . . . . . . . . . . . . . . 1 . . . FOLLOW 1 | . . . . . . . . . . . . . . 1 . . . AID 3 | . . . . . . . . . . . . . . 2 1 . . Ally Attacks 183 | . . . . . 9 10 . 8 6 21 4 . . 82 39 . 4 Total Damage 5416 | . . . . . 55 149 . 69 275 482 138 . . 2312 1868 . 68 Kills 39 | . . . . . 2 2 . 1 2 3 2 . . 16 10 . 1 Allies Corrupted . | . . . . . . . . . . . . . . . . . . Allies Melted 1 | . . . . . . . . . . . . . . 1 . . . Intel | -11 -10 -10 -9 -9 -9 -9 -7 -7 -7 -7 -6 -6 -5 -5 -4 -4 -3 ------- Run | Yrd Mat Min Mat Sto Gar Rec Fac Gar Fac Gar Fac Gar Fac Gar Fac Gar Res Active Infowar (turns) 4415 | . 388 39 449 96 114 . 527 261 176 162 136 219 134 822 260 163 469 Optics 284 | . . . . . . . . . . . . . . . . . 284 Terrain 159 | . . . . . . . . . . . . . . . 105 54 . Structural 1091 | . . . . . . . 418 44 . . . . . . 56 163 410 Seismic 4121 | . 388 39 295 96 114 . 527 261 176 162 136 219 134 822 260 145 347 ECM 445 | . . . 225 77 . . . . . . . . . . . . 143 Robot Analysis Total 3 | . 2 . . . . . . . . . . . . . . . 1 Derelict Logs Recovered . | . . . . . . . . . . . . . . . . . . Drone Launches . | . . . . . . . . . . . . . . . . . . Drone Recoveries . | . . . . . . . . . . . . . . . . . . Exploration | -11 -10 -10 -9 -9 -9 -9 -7 -7 -7 -7 -6 -6 -5 -5 -4 -4 -3 ------------- Run | Yrd Mat Min Mat Sto Gar Rec Fac Gar Fac Gar Fac Gar Fac Gar Fac Gar Res Turns Passed 5954 | 43 821 39 876 96 302 283 527 261 176 235 228 219 134 822 260 163 469 Spaces Moved 9457 | 37 1115 102 970 185 396 525 697 427 328 408 552 406 327 1142 463 282 1095 Core 666 | 37 580 . . . 4 . . . . . . . . 29 . . 16 Treads 66 | . . . 12 . . . . . . . . . . 54 . . . Legs . | . . . . . . . . . . . . . . . . . . Wheels 71 | . . . 71 . . . . . . . . . . . . . . Hover . | . . . . . . . . . . . . . . . . . . Flight 8654 | . 535 102 887 185 392 525 697 427 328 408 552 406 327 1059 463 282 1079 Fastest Speed 26 | 50 37 37 34 34 29 29 26 26 26 29 30 30 30 26 26 26 26 Average Speed 32 | 50 43 37 42 34 30 29 26 26 27 29 30 30 30 33 26 27 28 Slowest Speed 350 | 50 50 37 200 34 104 29 26 109 29 30 30 30 30 350 29 29 50 Overloaded Moves 22 | . . . . . . . . . . . . . . . . . 22 Propulsion Burnouts . | . . . . . . . . . . . . . . . . . . Robots Hopped 68 | . 4 2 24 5 . 1 1 . 4 8 12 . 1 . 1 . 5 Potential Cave-ins . | . . . . . . . . . . . . . . . . . . Cave-ins Triggered . | . . . . . . . . . . . . . . . . . . Exploration Rate (%) 42 | 3 96 31 78 43 56 87 20 60 8 48 18 48 9 71 13 42 40 Regions Visited 17 Branch Regions 3 Pre-discovered Areas 4 | . . . 1 . . . 3 . . . . . . . . . . Known Exits Taken 7 | . . . 1 1 . . 1 . 1 . 1 . 1 . 1 . . Unknown Exits Taken 4 | 1 1 1 . . . 1 . . . . . . . . . . . Scrap Searched . | . . . . . . . . . . . . . . . . . . Spaces Dug 86 | . 2 . 10 4 . 3 6 8 4 5 1 6 7 6 2 2 20 Terrain Destroyed 241 | . 2 . 23 4 71 3 6 8 4 5 1 6 7 77 2 2 20 Melee 86 | . 2 . 10 4 . 3 6 8 4 5 1 6 7 6 2 2 20 Projectile 2 | . . . . . . . . . . . . . . 2 . . . AOE 153 | . . . 13 . 71 . . . . . . . . 69 . . . Terrain Rammed . | . . . . . . . . . . . . . . . . . . Walls Destroyed . | . . . . . . . . . . . . . . . . . . Machines Disabled . | . . . . . . . . . . . . . . . . . . Actions | -11 -10 -10 -9 -9 -9 -9 -7 -7 -7 -7 -6 -6 -5 -5 -4 -4 -3 --------- Run | Yrd Mat Min Mat Sto Gar Rec Fac Gar Fac Gar Fac Gar Fac Gar Fac Gar Res Total 11515 | 50 1371 100 1238 196 548 636 1017 527 392 482 569 472 347 1478 569 330 1193 Wait 1130 | . 198 1 111 1 83 86 293 12 55 47 2 4 11 116 64 20 26 Move 9324 | 36 1106 97 924 176 395 522 694 426 321 394 533 405 325 1141 461 281 1087 Hop 53 | . 4 2 21 4 . 1 1 . 3 5 7 . 1 . 1 . 3 Pick Up 45 | 3 5 . 9 1 5 . 4 2 . 1 1 3 . 5 1 . 5 Fast Attach 86 | 5 7 . 15 . 12 . 3 5 . 2 2 2 1 20 5 1 6 Attach 27 | . 1 . 8 . 3 . 2 . . . 2 . . 4 1 . 6 Detach 8 | . . . 5 1 2 . . . . . . . . . . . . Swap 76 | . 3 . 17 2 6 . 5 2 2 3 . 1 1 23 . 4 7 Drop 76 | 1 7 . 20 2 5 . 4 5 . 4 . 3 1 17 2 1 4 Fire 244 | 5 37 . 70 . 7 . 2 3 4 4 . . . 64 19 7 22 Melee 267 | . 3 . 38 9 15 27 9 27 7 15 21 15 7 19 15 16 24 Ram . | . . . . . . . . . . . . . . . . . . Kick . | . . . . . . . . . . . . . . . . . . Crush . | . . . . . . . . . . . . . . . . . . Escape Stasis 159 | . . . . . 15 . . 45 . 7 . 39 . 53 . . . Rewire 20 | . . . . . . . . . . . 1 . . 16 . . 3 Trap . | . . . . . . . . . . . . . . . . . . Miscellaneous . | . . . . . . . . . . . . . . . . . . Route ------- -11/Scrapyard -10/Materials (discovered 6 exits: *Mat x3 / [*Min x2] / Sub) -10/Mines -9/Materials (discovered 7 exits: *Mat x3 / *Min x2 / *Sto x2) -9/Storage (discovered 2 exits: Mat / Gar) -9/Garrison -9/Recycling -7/Factory (discovered 2 exits: Low / Gar) -7/Garrison (discovered 3 exits: *Fac x3) -7/Factory (discovered 2 exits: *Low / Gar) -7/Garrison -6/Factory (discovered 2 exits: [*Low] / Gar) -6/Garrison -5/Factory (discovered 2 exits: [*Upp] / Gar) -5/Garrison (discovered 2 exits: *Fac x2) -4/Factory -4/Garrison (discovered 3 exits: *Res x3) -3/Research (discovered 4 exits: [*Res x2] / [*Arm] / [*Qua]) History --------- Turn | Location | Event 9 | -11/Scrapyard | Discovered new exit (range 14) 44 | -11/Scrapyard | Entered Materials 45 | -10/Materials | Met a group of wandering Federalists 47 | -10/Materials | Discovered new exit (range 15) 106 | -10/Materials | Discovered new exit (range 13) 169 | -10/Materials | Lost 4 allies 284 | -10/Materials | Discovered new exit (range 16) 313 | -10/Materials | Build established: Mutant 483 | -10/Materials | Discovered new exit (range 5) 500 | -10/Materials | Learned 4 Subcaves zone layouts 567 | -10/Materials | Repaired Lgt. Nuclear Core 579 | -10/Materials | Learned 2 Storage zone layouts 587 | -10/Materials | Discovered new exit (range 16) 649 | -10/Materials | Identified exit to Subcaves 730 | -10/Materials | Build established: Scavenger-Mutant 755 | -10/Materials | Learned Storage terminal intel 865 | -10/Materials | Entered Mines 866 | -10/Mines | Assembled infested the area 888 | -10/Mines | Found a hidden stash of uninstalled traps 900 | -10/Mines | Discovered new exit (range 8) 904 | -10/Mines | Entered Materials 904 | -9/Materials | Evolved 2 slots: Propulsion x1, Utility x1 904 | -9/Materials | Discovered new exit (range 8) 1012 | -9/Materials | Lost 5 parts (1p2n2w) 1090 | -9/Materials | Central database locked down 1097 | -9/Materials | Discovered new exit (range 15) 1105 | -9/Materials | Discovered new exit (range 8) 1110 | -9/Materials | Core integrity fell below 50% 1210 | -9/Materials | Build established: Mutant 1349 | -9/Materials | Discovered new exit (range 5) 1387 | -9/Materials | Discovered new exit (range 16) 1460 | -9/Materials | Discovered new exit (range 16) 1474 | -9/Materials | Identified exit to Mines 1474 | -9/Materials | Identified exit to Storage 1520 | -9/Materials | Identified exit to Materials 1627 | -9/Materials | Build established: Scavenger-Mutant 1657 | -9/Materials | Learned location of 2 exits from Materials 1682 | -9/Materials | Learned 4 Recycling zone layouts 1695 | -9/Materials | Learned location of Recycling (-9) 1717 | -9/Materials | Loaded intel: 19 trap records 1751 | -9/Materials | Learned 2 Storage zone layouts 1780 | -9/Materials | Entered Storage 1782 | -9/Storage | Loaded intel: 14 terminal locations 1831 | -9/Storage | Garrison activated, responded to threat 1857 | -9/Storage | Found Prototype Protection 1857 | -9/Storage | Identified Lgt. Regenerative Plating 1876 | -9/Storage | Identified exit to Garrison 1876 | -9/Storage | Entered Garrison 1899 | -9/Garrison | Phase Generator disabled 1927 | -9/Garrison | Build established: Mutant 1965 | -9/Garrison | Installed Relay Interface Framework 2016 | -9/Garrison | Garrison Relay disabled 2050 | -9/Garrison | Triggered checkpoint 2104 | -9/Garrison | Core integrity fell below 20% 2155 | -9/Garrison | Garrison Relay disabled 2170 | -9/Garrison | Triggered checkpoint 2173 | -9/Garrison | Discovered new exit (range 10) 2177 | -9/Garrison | Learned Recycling security intel 2178 | -9/Garrison | Entered Recycling 2216 | -9/Recycling | Watched by a mysterious "MATRIX" hacker 2320 | -9/Recycling | Scanned before Scraplab entrance 2338 | -9/Recycling | Discovered new exit (range 6) 2449 | -9/Recycling | Lost 4 allies 2461 | -9/Recycling | Entered Factory 2461 | -7/Factory | Evolved 4 slots: Propulsion x1, Utility x3 2714 | -7/Factory | Identified exit to Garrison 2745 | -7/Factory | Identified exit to Lower Caves 2855 | -7/Factory | Learned location of 1 exit from Lower Caves 2882 | -7/Factory | Build established: Scavenger-Sprinter 2896 | -7/Factory | Learned location of Zion (-6) 2927 | -7/Factory | Learned location of Lower Caves (-7) 2988 | -7/Factory | Entered Garrison 2989 | -7/Garrison | Identified exit to Factory 3012 | -7/Garrison | Triggered checkpoint 3029 | -7/Garrison | Garrison Relay disabled 3072 | -7/Garrison | Triggered checkpoint 3141 | -7/Garrison | Garrison Relay disabled 3146 | -7/Garrison | Garrison Relay disabled 3218 | -7/Garrison | Discovered exit to Factory (range 14) 3223 | -7/Garrison | Expanded RIF knowledge: Signal Jamming 3232 | -7/Garrison | Garrison Relay disabled 3249 | -7/Garrison | Entered Factory 3360 | -7/Factory | Discovered exit to Lower Caves (range 13) 3373 | -7/Factory | Identified exit to Garrison 3425 | -7/Factory | Entered Garrison 3425 | -7/Garrison | Accompanied by 3 allies 3435 | -7/Garrison | Garrison Relay disabled 3447 | -7/Garrison | Triggered checkpoint 3461 | -7/Garrison | Build established: Bothacker-Sprinter 3560 | -7/Garrison | Garrison Relay disabled 3619 | -7/Garrison | Discovered new exit (range 15) 3626 | -7/Garrison | Triggered checkpoint 3636 | -7/Garrison | Expanded RIF knowledge: Threat Obfuscation 3660 | -7/Garrison | Entered Factory 3660 | -6/Factory | Evolved 2 slots: Utility x2 3742 | -6/Factory | Discovered new exit (range 8) 3774 | -6/Factory | Spotted B-75 Beast 3858 | -6/Factory | Targeted by mysterious "MATRIX" hacker 3888 | -6/Factory | Identified exit to Garrison 3888 | -6/Factory | Entered Garrison 3894 | -6/Garrison | Garrison Relay disabled 3904 | -6/Garrison | Triggered checkpoint 3996 | -6/Garrison | Expanded RIF knowledge: Hotswap 4016 | -6/Garrison | Garrison Relay disabled 4054 | -6/Garrison | Discovered new exit (range 10) 4054 | -6/Garrison | Spotted B-90 Cyclops 4072 | -6/Garrison | Garrison Relay disabled 4107 | -6/Garrison | Entered Factory 4107 | -5/Factory | Evolved 2 slots: Utility x2 4176 | -5/Factory | Discovered new exit (range 9) 4241 | -5/Factory | Identified exit to Garrison 4241 | -5/Factory | Entered Garrison 4306 | -5/Garrison | Lost 4 parts (3n1u) 4319 | -5/Garrison | Triggered checkpoint 4461 | -5/Garrison | Triggered checkpoint 4467 | -5/Garrison | Garrison Relay disabled 4538 | -5/Garrison | Garrison Relay disabled 4565 | -5/Garrison | Triggered checkpoint 4576 | -5/Garrison | Phase Generator disabled 4614 | -5/Garrison | Lost 5 allies 4633 | -5/Garrison | Rescued a captive Derelict 4657 | -5/Garrison | Triggered checkpoint 4763 | -5/Garrison | Triggered checkpoint 4801 | -5/Garrison | Triggered checkpoint 4840 | -5/Garrison | Garrison Relay disabled 4870 | -5/Garrison | Build established: Botlord-Sprinter 4879 | -5/Garrison | Triggered checkpoint 4880 | -5/Garrison | Discovered new exit (range 11) 4914 | -5/Garrison | Discovered new exit (range 14) 4921 | -5/Garrison | Expanded RIF knowledge: Code Merge 4955 | -5/Garrison | Garrison Relay disabled 4965 | -5/Garrison | Triggered checkpoint 5063 | -5/Garrison | Entered Factory 5063 | -4/Factory | Accompanied by 6 allies 5063 | -4/Factory | Evolved 2 slots: Utility x2 5195 | -4/Factory | Repaired Imp. Remote Datajack 5209 | -4/Factory | Lost 4 allies 5323 | -4/Factory | Identified exit to Garrison 5323 | -4/Factory | Entered Garrison 5332 | -4/Garrison | Expanded RIF knowledge: Watcher Feeds 5340 | -4/Garrison | Garrison Relay disabled 5341 | -4/Garrison | Triggered checkpoint 5362 | -4/Garrison | Discovered new exit (range 38) 5362 | -4/Garrison | Discovered new exit (range 58) 5362 | -4/Garrison | Discovered new exit (range 43) 5435 | -4/Garrison | Spotted B-86 Titan 5443 | -4/Garrison | Triggered checkpoint 5443 | -4/Garrison | Triggered checkpoint 5486 | -4/Garrison | Entered Research 5486 | -3/Research | Evolved 2 slots: Utility x2 5524 | -3/Research | Discovered new exit (range 16) 5576 | -3/Research | Central database locked down 5671 | -3/Research | Found Spectral Analyzer 5674 | -3/Research | Discovered new exit (range 17) 5707 | -3/Research | Discovered new exit (range 12) 5736 | -3/Research | Search patrols dispatched 5875 | -3/Research | Discovered new exit (range 12) 5875 | -3/Research | Spotted B-90 Cyclops 5897 | -3/Research | Spotted B-86 Titan 5938 | -3/Research | Core integrity fell below 50% 5939 | -3/Research | Spotted CY-PHR 5942 | -3/Research | System corruption reached 10% 5947 | -3/Research | Core integrity fell below 20% 5955 | -3/Research | Destroyed by P-80 Master with Gamma Rifle Last Messages --------------- 05910_ Penetrated by Slug. 05912_ Field Propulsion Array+ destroyed. 05915_ Acquired Adv. Datajack. 05925_ ALERT: Cargo convoy en route, clear transfer corridor. 05927_ Relay Coupler [Grunt] destroyed. 05931_ >> Watcher Feeds: Established visual feed link with W-44 Eye. 05937_ Penetrated by Slug. 05938_ S-43 Plague destroyed. CY-PHR: "I'm out." 05940_ Cld. Field Propulsion Drive destroyed. 05943_ Relay Coupler [Brawler] destroyed. 05944_ P-80 Master resets S-43 Plague, system corruption cleaned. 05945_ Acquired Xenon Bombardment Thruster. 05946_ Axe destroyed. 05949_ >> Watcher Feeds: Feed link from W-44 Eye lost. 05951_ Xenon Bombardment Thruster destroyed. Map ----- +----------------------------------------------------+ | ?????????????????????????????????????????????????? | | ?????????????????????????????????????????????????? | | ?????????????????????????????????????????????????? | | ?????????????????????????????????????????????????? | | ?????????????????????????????????????????????????? | | ?????????????????????????????????????????????????? | | ?????????????????????????????????????????????????? | | ?????????????????????????????????????????????????? | | ?????????????????????????????????????????????????? | | ?????????????????????????????????????????????????? | | ?????????????????????????????????????????????????? | | ?????????????????????????????????????????????????? | | ?????????????????????????????????????????????????? | | ?????????????????????????????????????????????????? | | ?????????????????????????????????????????????????? | | ?????????????????????????????????????????????????? | | ?????????????????????????????????????????????????? | | ???????????????????????????????????????????????##? | | ???????????????????????????????????????????####"## | | ??????????????????????????????????????###### | | ??????????????????????????????????????# # | | ??????????????????####????????????????# # | | ??????????????????# ################# # | | ??????????????????# " / / /! | | ??????????????????# ### ########### # # | | ??????????###############@#####?????# ######""#""# | | ??????##### = # #?????# #?###! | | ??????# # # #?????# #?# | | ??????# # # #?????# #?# | | ??????# # """ # !#?????# #?##" | | ??????# # """ # #?????# #??## =! | | ??????# # """ # s ####### #T ## =! | | ??????# ! # # s s g !! | | ####### # # sp ####### | | ###+######"######p############## | | * p # | | % #+########### | | ! #??????????## | | ###"######################## #??????????## | | ##+###?# !????????????????????????????????????## | | """""??# ???????????????????????????????????## | | """""""# ????????????????????????????????#### | | """""""# #????????????????????????????###### | | """""""# ] #????????????????????????????+ | | """""""# #????????????????????????????###### | | """""""### ####????????????????????????????????## | | """""""#??##???????????????????????????????????## | | """"""?????????????????????????????????????????## | | ???????????????????????????????????????????????## | | ?##############??????????????????? ???????????## | +----------------------------------------------------+ Best States ------------- Heat Dissipation 46 Energy Generation 23 Energy Capacity 180 Matter Stores 300 Matter Capacity 300 Sight Range 24 Terrain Scan Range 14 Terrain Scan Density 85 ECM Strength 1 Additional Mass Support 6 Armor Coverage 150 Power Shielding 66 Propulsion Shielding 33 Evasion (%) 74 Recoil Reduction 3 Salvage Targeting 9 Offensive Hacking 12 Relay Coupler Types 7 Relay Coupler Value 175 Item Schematics ----------------- System Restoration Module | -6/Factory | Scanalyzed Robot Schematics ------------------ None Fabricated ------------ Nothing Repaired ---------- Lgt. Nuclear Core | 66% | -10/Materials Imp. Remote Datajack | 20% | -4/Factory Studied --------- Flight Unit | -9/Materials | Hacked Maul | -9/Materials | Hacked VTOL Module | -7/Factory | Hacked Cesium-ion Thruster | -7/Factory | Hacked Imp. Datajack | -6/Factory | Hacked Field Propulsion Array | -3/Research | Hacked Alien Tech Used ----------------- None Achievements -------------- None Challenges ------------ None Game ------ Seed SuperchargedVisualSheargun Manual? 0 Play Time 02:01:54 Cumulative 415.2 hours Start 2026.09.12 @ 19:08:41 End 2026.09.12 @ 21:09:53 Sessions 1 Manual Loads 0 Difficulty Rogue Special Mode None Game No. 199 Rogue 199 Adventurer 0 Explorer 0 Win Type - Total 44 Types 23/1/9/2/5/1/1/0/0/2 Lore% 91 Gallery% 81 Achievement% 88 Wizard Run 0 Options --------- Layout 1 ASCII 0 Keyboard 0 Movement Numpad Keybinds 0 Fullscreen 1 Font 24/Smallcaps Map View 50x35 Zoom Use 0% Tactical HUD 1 Map Filters NONE Filters NONE Steam 1 RUN: ce0dc8b4-8cab-43ff-9094-380729e8917f